Cogmind - Beta 14 @@@ ROGUE MODE // 2024.08.28 @ 12:26:45 Player: ktur Result: Self-destructed Performance ------------- Evolutions (6) 3000 Regions Visited (18) 3600 Robots Destroyed (182) 910 Value Destroyed (8746) 8746 Prototype IDs (55) 1100 Alien Tech Used (0) 0 Bonus (7041) 7041 TOTAL SCORE: 24397 Bonus ------- High Alert Combat Kills 1303 Follower Combat Kills 2619 Network Hubs Disabled 200 Delivered SUBCON Basin 2000 Registered with UFD 300 Met Imprinter 300 Destroyed Z-Imprinter 1000 Built Enhanced Grunts 300 A7 Reached Mainframe 300 Met R17 at Cetus 500 Friendly Fire -1781 Cogmind --------- Core Integrity 214/1150 Matter 245/300 Energy 100/100 System Corruption 23% Temperature Cool (16) Movement Rolling (90) Ox2 Location -4/Armory Parts ------- > --- POWER (2) -------- (None) > --- PROPULSION (2) --- Overtuned Huge Scrapsphere > --- UTILITY (12) ----- High-capacity Storage Unit Advanced Visual Processing Unit Improved System Shield Advanced System Shield A0-MCA's Component Scanner > --- WEAPON (3) ------- KE Penetrator > --- INVENTORY (20) --- Huge Storage Unit Advanced Energy Well (44) Long-range Sensor Array Advanced Signal Interpreter Advanced Particle Charger Advanced Transmission Jammer Hardened Light Armor Plating Experimental Thermal Shield Authchip [Weapon] Advanced Trap Extractor (0/8) Enhanced Nova Cannon Hypervelocity Alpha Cannon Linear Accelerator CPS Tube (2) CPS Tube (2) CPS Tube (2) Multitool Peak State ------------ > --- POWER ------------ Quantum Reactor Quantum Reactor > --- PROPULSION ------- Centrium Heavy Treads > --- UTILITY ---------- High-capacity Storage Unit Advanced Energy Well Zionite Weapon Casing Centrium Medium Armor Plating Enhanced Scrap Shield Experimental Thermal Shield Advanced Force Field Advanced System Shield Advanced System Shield A0-MCA's Component Scanner Tech Extrapolator > --- WEAPON ----------- Powered Cannon Advanced KE Penetrator > --- INVENTORY -------- Centrium Heavy Treads Advanced Cooling System Advanced Energy Well High-capacity Matter Pod Advanced Particle Charger Advanced Particle Charger Advanced Particle Charger Advanced Transmission Jammer Zionite Weapon Casing Centrium Medium Armor Plating Experimental Thermal Shield Advanced Force Field Authchip [Weapon] Authchip [Weapon] Authchip [Weapon] Advanced KE Penetrator CPS Tube CPS Tube Multitool [Rating: 150] Favorites ----------- Power Improved Ion Engine Engine Improved Ion Engine Power Core Neutrino Core Reactor Quantum Reactor Propulsion Compact Wheel Treads Light Treads Wheel Compact Wheel Utility High-capacity Storage Unit Device Scrap Suit Storage High-capacity Storage Unit Processor A0-MCA's Component Scanner Hackware Advanced System Shield Protection Enhanced Scrap Shield Weapon Powered Cannon Energy Cannon Powered Cannon Ballistic Gun Shotgun Ballistic Cannon Gauss Cannon Launcher Gamma Bomb Array Special Weapon Mining Laser Slashing Weapon Chainsword Piercing Weapon Force Lance Build | -11 -10 -10 -10 -9 -9 -6 -6 -6 -6 -6 -5 -5 -5 -5 -5 -5 -4 -4 ------- Run | Yrd Mat Min Sub Rec Scr Fac Low Low Zio Dee Pro Fac Ext Cet Arc Hub Fac Arm Slots Evolved 12 | . . . . . . 8 . . . . . 2 . . . . 2 . Power 1 | . . . . . . . . . . . . . . . . . 1 . Propulsion . | . . . . . . . . . . . . . . . . . . . Utility 10 | . . . . . . 8 . . . . . 1 . . . . 1 . Weapon 1 | . . . . . . . . . . . . 1 . . . . . . Parts Attached 160 | 6 8 . 25 4 3 27 5 . 4 7 . 5 9 10 1 . 15 31 Power 28 | . 2 . 3 . 1 2 1 . . 2 . . 3 1 . . 5 8 Engine 8 | . 2 . 3 . 1 1 1 . . . . . . . . . . . Core 4 | . . . . . . 1 . . . 1 . . 2 . . . . . Reactor 16 | . . . . . . . . . . 1 . . 1 1 . . 5 8 Propulsion 16 | 2 . . 7 1 . 2 . . . 1 . . . 1 . . 1 1 Treads 6 | 2 . . 2 . . . . . . . . . . 1 . . 1 . Leg . | . . . . . . . . . . . . . . . . . . . Wheel 10 | . . . 5 1 . 2 . . . 1 . . . . . . . 1 Hover . | . . . . . . . . . . . . . . . . . . . Flight . | . . . . . . . . . . . . . . . . . . . Utility 68 | 2 3 . 3 . . 15 3 . 4 4 . 4 2 7 1 . 5 15 Device 24 | 1 1 . . . . 7 2 . . 2 . 2 . 2 1 . . 6 Storage 14 | 1 2 . 3 . . 2 . . 2 . . . 1 1 . . . 2 Processor 3 | . . . . . . 2 . . . . . . . . . . . 1 Hackware 7 | . . . . . . 1 . . . . . 1 . . . . 2 3 Protection 20 | . . . . . . 3 1 . 2 2 . 1 1 4 . . 3 3 Artifact . | . . . . . . . . . . . . . . . . . . . Weapon 48 | 2 3 . 12 3 2 8 1 . . . . 1 4 1 . . 4 7 Energy Gun . | . . . . . . . . . . . . . . . . . . . Energy Cannon 7 | . . . 2 1 . 1 1 . . . . . . . . . . 2 Ballistic Gun 20 | 2 3 . 7 1 1 4 . . . . . . . 1 . . 1 . Ballistic Cannon 4 | . . . . . 1 2 . . . . . . . . . . . 1 Launcher 1 | . . . . . . . . . . . . . . . . . . 1 Special Weapon 11 | . . . 3 . . . . . . . . 1 4 . . . 2 1 Impact Weapon . | . . . . . . . . . . . . . . . . . . . Slashing Weapon 2 | . . . . 1 . 1 . . . . . . . . . . . . Piercing Weapon 3 | . . . . . . . . . . . . . . . . . 1 2 Special Melee Weapon . | . . . . . . . . . . . . . . . . . . . Unidentified Prototypes . | . . . . . . . . . . . . . . . . . . . Corrupted Parts 2 | . . . . . . . . . . . . . . . . . . 2 System Corruption 4 | . . . . . . . . . . . . . . . . . . 4 Parts Lost 56 | . . . 7 . . 12 . . . . . 2 3 2 . . 7 23 Power 13 | . . . . . . 2 . . . . . . 2 . . . 2 7 Propulsion 6 | . . . 4 . . 2 . . . . . . . . . . . . Utility 27 | . . . 1 . . 5 . . . . . 2 1 2 . . 5 11 Weapon 10 | . . . 2 . . 3 . . . . . . . . . . . 5 Highest Loss Streak 8 | . . . 1 . . 8 . . . . . 2 1 2 . . 5 8 To Critical Strikes 2 | . . . 1 . . . . . . . . . . . . . . 1 Average Slot Usage (%) 84 | . 98 100 98 85 85 68 83 81 81 79 75 68 70 75 82 82 79 79 Engine 9 | . 13 14 14 14 14 5 10 12 12 8 6 5 2 . . . . . Reactor 2 | . . . . . . . . . . 1 6 5 3 4 5 5 9 8 Treads 7 | . 28 28 21 . . . . . . . . . . 4 5 5 5 . Wheel 9 | . . . 5 28 28 12 12 12 12 10 6 5 5 . . . . 4 Device 8 | . 14 14 . . . 10 31 31 24 14 18 15 13 4 10 11 9 8 Storage 13 | . 14 14 26 14 14 12 6 6 11 10 6 5 7 11 11 11 10 10 Processor 5 | . . . . . . 5 12 12 12 12 12 11 11 11 11 11 10 11 Hackware 2 | . . . . . . 2 . . . . . 2 5 5 5 5 10 15 Protection 4 | . . . . . . 4 . . . 10 12 10 11 21 17 17 13 5 Energy Cannon 5 | . . . 5 22 7 . 4 6 6 6 6 5 5 5 5 5 5 5 Ballistic Gun 9 | . 27 28 20 5 10 7 4 . . . . . . 1 5 5 1 . Ballistic Cannon 1 | . . . . . 9 3 . . . . . . . . . . . . Peak Build Rating 150 | 6 11 11 34 36 28 69 80 80 81 101 101 111 109 136 136 135 150 135 Average Rating 63 | 4 10 11 15 33 25 47 76 80 80 88 101 105 104 122 135 134 141 121 On Entrance 71 | . 6 11 11 34 17 27 69 80 80 80 101 101 109 102 136 135 135 121 Naked Turns . | . . . . . . . . . . . . . . . . . . . Heaviest Build 280 | 10 32 32 221 221 224 280 83 83 97 98 92 96 94 109 117 117 137 121 Greatest Support 80 | 40 40 40 40 36 32 32 16 16 16 20 20 20 20 80 80 80 80 80 Greatest Overweight (x) 34 | . . . 13 6 6 34 5 5 6 6 4 4 4 4 1 1 1 23 Average Overweight (x) 3 | . . . 1 6 6 5 4 5 5 4 4 3 3 1 1 1 1 4 Largest Inventory Capacity 35 | 8 15 15 35 35 35 35 20 20 20 20 20 20 20 20 20 20 20 20 Average Capacity 22 | 7 14 15 18 35 35 28 20 20 20 20 20 20 20 20 20 20 20 20 Most Carried 35 | 6 15 15 35 35 35 35 20 20 20 20 20 20 20 20 20 20 20 20 Average Carried 21 | 4 12 15 17 34 33 26 19 20 19 19 20 19 18 19 20 19 18 19 Final Capacity 35 | 8 15 15 35 35 35 20 20 20 20 20 20 20 20 20 20 20 20 20 Final Carried 35 | 6 15 15 35 21 35 20 20 20 20 20 20 20 20 20 20 20 16 17 Class Distribution -------------------- 27% | Mutant 26% | Scavenger-Mutant 23% | Hauler-Mutant 9% | Hacker-Mutant 6% | Scavenger-Tank 3% | Commander-Mutant Dominant Class ---------------- Mutant | -10/Materials Mutant | -10/Mines Mutant | -10/Subcaves Hauler-Mutant | -9/Recycling Hauler-Mutant | -9/Scraptown Hauler-Mutant | -6/Factory Scavenger-Mutant | -6/Lower Caves Scavenger-Mutant | -6/Lower Caves Scavenger-Mutant | -6/Zion Scavenger-Mutant | -6/Deep Caves Scavenger-Mutant | -5/Proximity Caves Scavenger-Mutant | -5/Factory Commander-Mutant | -5/Extension Commander-Mutant | -5/Cetus Scavenger-Tank | -5/Archives Scavenger-Tank | -5/Hub_04(d) Scavenger-Mutant | -4/Factory Hacker-Mutant | -4/Armory Resources | -11 -10 -10 -10 -9 -9 -6 -6 -6 -6 -6 -5 -5 -5 -5 -5 -5 -4 -4 ----------- Run | Yrd Mat Min Sub Rec Scr Fac Low Low Zio Dee Pro Fac Ext Cet Arc Hub Fac Arm Matter Collected 4193 | 296 338 175 646 52 30 602 683 311 40 80 . 50 120 100 14 . 171 485 Remotely . | . . . . . . . . . . . . . . . . . . . Salvage Created 9651 | 146 425 130 626 142 . 602 108 . . 602 . 647 1446 218 80 392 2031 2056 Parts 488 | 8 27 14 50 8 . 31 10 . . 32 . 34 73 9 2 15 68 107 Haulers Intercepted 3 | . 1 . . . . 1 . . . . . 1 . . . . . . Recyclers Shooed 1 | . . 1 . . . . . . . . . . . . . . . . Parts Field Recycled . | . . . . . . . . . . . . . . . . . . . Retrieved Matter . | . . . . . . . . . . . . . . . . . . . Parts Self-Destructed 50 | . . . 21 . . . 23 6 . . . . . . . . . . Prevented . | . . . . . . . . . . . . . . . . . . . Kills | -11 -10 -10 -10 -9 -9 -6 -6 -6 -6 -6 -5 -5 -5 -5 -5 -5 -4 -4 ------- Run | Yrd Mat Min Sub Rec Scr Fac Low Low Zio Dee Pro Fac Ext Cet Arc Hub Fac Arm Combat Hostiles Destroyed 161 | . 8 9 18 1 . 11 2 . . 6 . 13 18 3 1 5 31 35 Melee 2 | . . . . . . . . . . . . . . . . . 2 . Guns 44 | . 8 9 16 . . 7 1 . . . . . . . . . . 3 Cannons 93 | . . . 2 1 . 3 1 . . 6 . 12 15 2 . 3 21 27 AOE 2 | . . . . . . . . . . . . . . . . . . 2 Classes Destroyed 24 | 3 3 1 3 1 . 4 1 . . 3 . 2 1 . . . . 2 Worker 2 | 1 . . . . . . . . . . . 1 . . . . . . Builder 2 | . . . . . . 1 . . . . . . 1 . . . . . Tunneler 3 | 2 1 . . . . . . . . . . . . . . . . . Hauler 3 | . 1 . . . . 1 . . . . . 1 . . . . . . Recycler 2 | 1 . . . . . . . . . . . . 1 . . . . . Operator 1 | . . . . . . . . . . . . 1 . . . . . . Turret 2 | . . . 2 . . . . . . . . . . . . . . . Watcher 3 | . 1 . . . . . . . . . . . 1 . . . . 1 Swarmer 35 | . . 9 3 . . . . . . . . 9 . . . . 7 7 Saboteur 1 | . . . . . . . . . . . . . . . . . . 1 Grunt 48 | . 8 . 2 . . 3 . . . . . 2 6 . . 2 14 11 Brawler 3 | . . . . . . 1 . . . . . . . . . . 2 . Duelist 3 | . . . . . . . . . . . . 1 . . . . 2 . Sentry 18 | . . . . 1 . . 1 . . . . . 8 . 1 . 4 3 Demolisher 2 | . . . . . . . . . . . . . . . . . . 2 Hunter 15 | . . . . . . 5 . . . . . 1 2 . . 3 . 4 Programmer 11 | . . . . . . 2 . . . . . . . . . . 2 7 Behemoth 2 | . . . . . . . . . . . . . 2 . . . . . Cetus Guard 3 | . . . . . . . . . . . . . . 3 . . . . Enhanced Grunt 3 | . . . . . . . . . . 2 . . . . . 1 . . Artisan 1 | . . . 1 . . . . . . . . . . . . . . . Subdweller 13 | . . . 13 . . . . . . . . . . . . . . . Scrapoid 1 | . . . . . . . . . . 1 . . . . . . . . Z-Light 5 | . . . . . . . . . . 5 . . . . . . . . Thief 1 | . . . . . . . 1 . . . . . . . . . . . Assembled 1 | . . . . . . . . . . 1 . . . . . . . . Best Kill Streak 15 | 2 6 3 5 1 . 2 1 . . 2 . 5 4 3 1 3 10 15 Combat Bots Only 15 | . 6 3 5 1 . 2 1 . . 2 . 5 3 3 1 3 10 15 Max Kills in Single Turn 2 | 1 1 2 1 1 . 2 1 . . 1 . 1 1 1 1 1 1 2 Gunslinging 1 | . . 1 . . . . . . . . . . . . . . . . Exploded 1 | . . . . . . . . . . . . . . . . . . 1 Melee 1 | . . . . . . . . . . . . . . . . . 1 . Uniques/NPCs Destroyed 1 | . . . . . . . . . . 1 . . . . . . . . Z-Imprinter (-6/Deep Caves) Combat | -11 -10 -10 -10 -9 -9 -6 -6 -6 -6 -6 -5 -5 -5 -5 -5 -5 -4 -4 -------- Run | Yrd Mat Min Sub Rec Scr Fac Low Low Zio Dee Pro Fac Ext Cet Arc Hub Fac Arm Hostile Shots Fired 1323 | . 25 23 100 . . 183 19 3 . 13 . 81 96 29 2 25 355 369 Missed 368 | . 11 3 27 . . 46 12 1 . 4 . 22 28 9 1 7 86 111 Damage Taken 14749 | . 178 173 1352 . . 1979 83 29 . 249 . 779 1102 479 9 224 2805 5308 Core 1596 | . 12 10 180 . . 222 15 . . 30 . 49 94 39 . 9 160 776 Absorbed by Shields 3201 | . . . . . . 267 31 11 . 89 . 104 399 125 10 220 1441 504 Reduced by Siege Mode 38 | . . . . . . . . . . . . . . . . . 38 . Redirected to Shielding 595 | . . . . . . . . . . 57 . 107 104 21 . 41 265 . Ignored by Resistances 1444 | . . . . . . . . . . . . . 121 . 9 26 1202 86 Regen/Repaired (Parts) 701 | . 88 . . . . 10 3 . . . . . . . . . . 600 Core Remaining (%) 66 | 100 . . . . 19 . . . . . 68 . . . . 80 . . Volleys Fired 605 | 6 20 10 79 2 . 63 10 1 . 41 4 51 84 16 4 20 101 93 Largest 2 | 2 2 2 2 2 . 2 2 1 . 1 1 1 1 1 2 1 1 2 Hottest 180 | 40 46 46 160 110 . 92 58 40 . 40 40 40 120 40 75 40 40 180 Shots Fired 781 | 12 40 20 135 3 . 107 18 1 . 41 4 51 84 16 5 20 101 123 Gun 276 | 12 40 20 105 1 . 66 15 . . . . . . . 1 . . 16 Cannon 481 | . . . 12 2 . 41 3 1 . 41 4 51 82 16 4 20 101 103 Launcher 4 | . . . . . . . . . . . . . . . . . . 4 Special 20 | . . . 18 . . . . . . . . . 2 . . . . . Kinetic 323 | 12 40 20 105 1 . 101 15 . . . . . . . 1 . . 28 Thermal 390 | . . . 30 2 . . 3 1 . 41 4 51 82 16 4 20 101 35 Explosive . | . . . . . . . . . . . . . . . . . . . Electromagnetic 10 | . . . . . . 6 . . . . . . . . . . . 4 Phasic 56 | . . . . . . . . . . . . . . . . . . 56 Robot Hit Streak 16 | 5 9 7 15 7 . 15 3 3 . 9 . 10 13 3 4 8 16 7 Robot Miss Streak 6 | 1 6 3 3 . . 4 2 . . 2 . 4 3 2 1 2 3 4 Penetration Max 1 | . . . . . . 1 . . . . . . . . 1 . . 1 Secondary Targets 11 | . 2 2 2 . . 2 1 . . . . . . . . . . 2 Max Gunslinging Chain 1 | . 1 1 1 . . 1 1 . . . . . . . . . . 1 Shots Hit Robots 514 | 9 32 13 95 3 . 70 10 1 . 20 . 25 59 9 4 12 82 70 Core Hits 268 | 5 24 9 43 1 . 29 9 . . 11 . 14 26 3 2 6 37 49 Critical Kills 25 | . 2 . 1 . . 1 . . . . . 1 3 1 1 2 8 5 Critical Parts Destroyed 2 | . . . . . . 1 . . . . . . . . . . . 1 Critical Strikes 56 | . 2 . 2 . . 5 . . . . . 1 3 1 1 2 9 30 Meltdown 19 | . . . . . . . . . . . . 1 3 1 1 2 8 3 Destroy 9 | . 2 . 2 . . 2 . . . . . . . . . . . 3 Blast 3 | . . . . . . 3 . . . . . . . . . . . . Impale 1 | . . . . . . . . . . . . . . . . . 1 . Phase 24 | . . . . . . . . . . . . . . . . . . 24 Melee Attacks 12 | . . . . 5 . 1 . . . . . . . . . . 4 2 Impact . | . . . . . . . . . . . . . . . . . . . Slashing 6 | . . . . 5 . 1 . . . . . . . . . . . . Piercing 6 | . . . . . . . . . . . . . . . . . 4 2 Sneak Attacks . | . . . . . . . . . . . . . . . . . . . Combat Hostiles . | . . . . . . . . . . . . . . . . . . . Follow-up Attacks . | . . . . . . . . . . . . . . . . . . . Damage Inflicted 19471 | 120 444 159 1686 159 . 1609 314 66 . 962 . 1530 3148 611 209 742 4342 3370 Guns 3543 | 120 430 152 1431 . . 864 218 . . . . . . . 59 . . 269 Cannons 15147 | . . . 255 29 . 745 96 66 . 962 . 1530 3148 611 150 740 4241 2574 Explosions 527 | . . . . . . . . . . . . . . . . . . 527 Melee 224 | . . . . 130 . . . . . . . . . . . . 94 . Ramming 30 | . 14 7 . . . . . . . . . . . . . 2 7 . Kinetic 4231 | 120 430 152 1431 . . 1465 218 . . . . . . . 59 . . 356 Thermal 12839 | . . . 255 29 . . 96 66 . 962 . 1530 3148 611 150 740 4241 1011 Explosive . | . . . . . . . . . . . . . . . . . . . Electromagnetic 671 | . . . . . . 144 . . . . . . . . . . . 527 Impact . | . . . . . . . . . . . . . . . . . . . Slashing 130 | . . . . 130 . . . . . . . . . . . . . . Piercing 94 | . . . . . . . . . . . . . . . . . 94 . Phasic 1476 | . . . . . . . . . . . . . . . . . . 1476 Highest Corruption 23 | . . . . . . 2 2 2 2 . . . . . . 1 1 23 Average Corruption 3 | . . . . . . 1 2 2 2 . . . . . . 1 1 5 Corruption Purged . | . . . . . . . . . . . . . . . . . . . Corruption Blocked . | . . . . . . . . . . . . . . . . . . . Effects 56 | . . . . . . 1 5 5 . . . . . . . . 5 40 Message Errors 12 | . . . . . . . 1 1 . . . . . . . . 1 9 Matter Fused 17 | . . . . . . . . 2 . . . . . . . . 2 13 Heat Flow Errors 5 | . . . . . . . 1 1 . . . . . . . . 1 2 Energy Discharges 4 | . . . . . . . . . . . . . . . . . . 4 Parts Fused 2 | . . . . . . . 1 . . . . . . . . . . 1 Data Loss (minor) 4 | . . . . . . . 1 . . . . . . . . . 1 2 Data Loss (major) 3 | . . . . . . . . . . . . . . . . . . 3 Misfires 4 | . . . . . . . 1 . . . . . . . . . . 3 Alerts 1 | . . . . . . . . 1 . . . . . . . . . . Weapon Failures 4 | . . . . . . 1 . . . . . . . . . . . 3 Overload Shots 1 | . . . . . . . . . . . . . 1 . . . . . Effects 1 | . . . . . . . . . . . . . 1 . . . . . Heat Surge 1 | . . . . . . . . . . . . . 1 . . . . . Overflow Damage 641 | . . . . 20 . 28 20 . . 73 . 170 45 . . 55 151 79 Projectiles 621 | . . . . . . 28 20 . . 73 . 170 45 . . 55 151 79 Explosions . | . . . . . . . . . . . . . . . . . . . Melee 20 | . . . . 20 . . . . . . . . . . . . . . Knockbacks 3 | . . . . . . 3 . . . . . . . . . . . . Impact . | . . . . . . . . . . . . . . . . . . . Kinetic 3 | . . . . . . 3 . . . . . . . . . . . . Secondary . | . . . . . . . . . . . . . . . . . . . Self-Inflicted Damage 113 | . . . . . . . . . . . . . . . . 93 . 20 Shots 3 | . . . . . . . . . . . . . . . . 1 . 2 Rammed 8 | . 1 2 . . . . . . . . . . . . . 1 4 . Targets Rammed 9 | . 2 2 . . . . . . . . . . . . . 1 4 . Kicked . | . . . . . . . . . . . . . . . . . . . Crushed 1 | . 1 . . . . . . . . . . . . . . . . . Highest Temperature 324 | . 4 . 277 33 . 50 154 85 . 36 65 186 303 25 22 24 164 324 Average Temperature 61 | . 2 . 128 17 . 11 47 41 . 17 31 52 88 10 13 14 44 82 Received Heat Transfer 2707 | . 99 . 593 . . 59 16 4 . 63 . . 211 55 4 8 853 742 Effects 2 | . . . 1 . . . . . . . . . 1 . . . . . Energy Bleed 1 | . . . . . . . . . . . . . 1 . . . . . Interference 1 | . . . 1 . . . . . . . . . . . . . . . Siege Activations 2 | . . . . . . . . . . . . . . . . . 2 . Total Turns 54 | . . . . . . . . . . . . . . . . . 54 . Longest Duration 35 | . . . . . . . . . . . . . . . . . 35 . Robots Corrupted 1 | . . . . . . 1 . . . . . . . . . . . . Combat Hostiles 1 | . . . . . . 1 . . . . . . . . . . . . Parts Fried 5 | . . . . . . 3 . . . . . . . 1 . . . 1 Impact Corruptions . | . . . . . . . . . . . . . . . . . . . Robots Melted 19 | . . . . . . . . . . . . 1 3 1 1 2 8 3 Combat Hostiles 19 | . . . . . . . . . . . . 1 3 1 1 2 8 3 Parts Melted 47 | . . . 1 . . . 2 . . 4 . . 8 3 3 6 15 5 Heat Transferred 370 | . . . 333 37 . . . . . . . . . . . . . . Parts Sabotaged 2 | . . . . . . . . . . . . . . . . . 2 . Parts Stolen . | . . . . . . . . . . . . . . . . . . . Parts Stripped . | . . . . . . . . . . . . . . . . . . . Power Chain Reactions 1 | . . . . . . . . . . . . . . . . . . 1 Alert | -11 -10 -10 -10 -9 -9 -6 -6 -6 -6 -6 -5 -5 -5 -5 -5 -5 -4 -4 ------- Run | Yrd Mat Min Sub Rec Scr Fac Low Low Zio Dee Pro Fac Ext Cet Arc Hub Fac Arm Peak Influence 1438 | 20 236 141 . 120 . 189 . . . . . 425 694 326 242 462 566 1438 Initial 324 | . 13 1 . . . . . . . . . . 134 324 95 14 226 272 Average 245 | 8 60 40 . 55 . 66 . . . . . 215 392 273 211 120 183 599 Maximum Alert Level 4 | . 1 . . . . . . . . . . 2 2 1 1 2 2 4 Low Security (%) 50 | 100 98 100 . 100 . 100 . . . . . 27 7 10 23 70 64 . Level 1 28 | . 1 . . . . . . . . . . 69 41 89 76 28 21 28 Level 2 17 | . . . . . . . . . . . . 3 50 . . . 14 49 Level 3 2 | . . . . . . . . . . . . . . . . . . 14 Level 4 1 | . . . . . . . . . . . . . . . . . . 6 Level 5 . | . . . . . . . . . . . . . . . . . . . High Security . | . . . . . . . . . . . . . . . . . . . Max Security . | . . . . . . . . . . . . . . . . . . . Squads Dispatched 32 | . 2 . . . . 5 . . . . . 4 3 . . 3 7 8 Investigation 10 | . 1 . . . . 2 . . . . . 2 . . . 2 1 2 Extermination 7 | . . . . . . 1 . . . . . . . . . . 2 4 Reinforcement 8 | . 1 . . . . 2 . . . . . 2 1 . . 1 . 1 Assault 5 | . . . . . . . . . . . . . 2 . . . 2 1 Garrison 2 | . . . . . . . . . . . . . . . . . 2 . Intercept . | . . . . . . . . . . . . . . . . . . . Searches Triggered . | . . . . . . . . . . . . . . . . . . . Construction Impeded 2 | . . . . . . 1 . . . . . 1 . . . . . . Haulers Reinforced 2 | . . . . . . 1 . . . . . . . . . 1 . . Active Scanning Responses . | . . . . . . . . . . . . . . . . . . . Cargo Convoy Interrupts . | . . . . . . . . . . . . . . . . . . . Stealth | -11 -10 -10 -10 -9 -9 -6 -6 -6 -6 -6 -5 -5 -5 -5 -5 -5 -4 -4 --------- Run | Yrd Mat Min Sub Rec Scr Fac Low Low Zio Dee Pro Fac Ext Cet Arc Hub Fac Arm Distress Signals 13 | . 1 . . . . 1 . . . . . . 1 2 1 . 3 4 Communications Jammed . | . . . . . . . . . . . . . . . . . . . Distress Signals . | . . . . . . . . . . . . . . . . . . . Times Spotted 297 | . 16 9 23 1 . 14 12 3 . 14 . 21 41 10 4 9 47 73 Peak Tracking Total 11 | . 5 3 4 1 . 4 10 3 . 3 . 5 9 5 2 3 8 11 Tactical Retreats 17 | . . . 1 . . . . . . 1 . 2 5 . . . 5 3 Traps | -11 -10 -10 -10 -9 -9 -6 -6 -6 -6 -6 -5 -5 -5 -5 -5 -5 -4 -4 ------- Run | Yrd Mat Min Sub Rec Scr Fac Low Low Zio Dee Pro Fac Ext Cet Arc Hub Fac Arm Traps Triggered 8 | . . . 1 . . . . . . . . . 4 . . . 1 2 Indirectly . | . . . . . . . . . . . . . . . . . . . Trap Hack Attempts . | . . . . . . . . . . . . . . . . . . . Triggered . | . . . . . . . . . . . . . . . . . . . Disarmed . | . . . . . . . . . . . . . . . . . . . Reprogrammed . | . . . . . . . . . . . . . . . . . . . Reused . | . . . . . . . . . . . . . . . . . . . Traps Extracted . | . . . . . . . . . . . . . . . . . . . Installed . | . . . . . . . . . . . . . . . . . . . Triggered . | . . . . . . . . . . . . . . . . . . . Most Traps Carried 2 | . . . . . 2 2 2 2 2 2 . . . . . . . . Machines | -11 -10 -10 -10 -9 -9 -6 -6 -6 -6 -6 -5 -5 -5 -5 -5 -5 -4 -4 ---------- Run | Yrd Mat Min Sub Rec Scr Fac Low Low Zio Dee Pro Fac Ext Cet Arc Hub Fac Arm Machines Disabled 31 | . . . . . . 1 . . . . . 4 3 . 2 6 1 14 Max in Single Turn 5 | . . . . . . 1 . . . . . 1 1 . . 5 1 2 Garrison Access 1 | . . . . . . . . . . . . . . . . . 1 . Network Hub 1 | . . . . . . . . . . . . . . . . 1 . . Machines Repaired 1 | . . . . . . . . . . . . . . . . . 1 . Machines Dismantled . | . . . . . . . . . . . . . . . . . . . Machines Sabotaged . | . . . . . . . . . . . . . . . . . . . Overloaded Fab Kills . | . . . . . . . . . . . . . . . . . . . Hacking | -11 -10 -10 -10 -9 -9 -6 -6 -6 -6 -6 -5 -5 -5 -5 -5 -5 -4 -4 --------- Run | Yrd Mat Min Sub Rec Scr Fac Low Low Zio Dee Pro Fac Ext Cet Arc Hub Fac Arm Machines Accessed 43 | . 7 . 3 8 5 2 . . . . . 2 6 1 . 2 2 5 Terminals 22 | . 5 . . 4 . . . . . . . 1 6 1 . 2 2 1 Fabricators 2 | . . . . . . . . . . . . 1 . . . . . 1 Repair Stations 3 | . 1 . . . . . . . . . . . . . . . . 2 Recycling Units 8 | . 1 . . 4 . 2 . . . . . . . . . . . 1 Scanalyzers . | . . . . . . . . . . . . . . . . . . . Garrison Access . | . . . . . . . . . . . . . . . . . . . Total Hacks 118 | . 10 . 6 19 24 4 . . . . . 5 11 3 . 6 12 18 Successful 75 | . 5 . 6 10 24 2 . . . . . 2 7 1 . 3 3 12 Failed 42 | . 4 . . 9 . 2 . . . . . 3 4 2 . 3 9 6 Catastrophic 6 | . . . . . . . . . . . . 2 1 1 . . . 2 Database Lockouts 1 | . 1 . . . . . . . . . . . . . . . . . Manual 65 | . 8 . . 18 . 4 . . 5 . . 4 3 1 . 6 8 8 Terminals 57 | . 7 . . 14 . . . . . . . 2 11 3 . 6 12 2 Fabricators 14 | . . . . . . . . . . . . 3 . . . . . 11 Repair Stations 5 | . 2 . . . . . . . . . . . . . . . . 3 Recycling Units 12 | . 1 . . 5 . 4 . . . . . . . . . . . 2 Scanalyzers . | . . . . . . . . . . . . . . . . . . . Garrison Access . | . . . . . . . . . . . . . . . . . . . Terminal Hacks 42 | . 1 . 6 1 24 . . . . . . . 7 1 . . 2 . Record 19 | . . . 4 . 15 . . . . . . . . . . . . . Part Schematic 1 | . . . . . . . . . . . . . 1 . . . . . Robot Analysis 9 | . 1 . . . 8 . . . . . . . . . . . . . Open Door 6 | . . . 1 . . . . . . . . . 4 1 . . . . Unreport Threat 4 | . . . . . . . . . . . . . 2 . . . 2 . Zone Layout 1 | . . . . 1 . . . . . . . . . . . . . . Derelict Proto ID Bank 1 | . . . . . 1 . . . . . . . . . . . . . Release Object 1 | . . . 1 . . . . . . . . . . . . . . . Fabricator Hacks 8 | . . . . . . . . . . . . 1 . . . . . 7 Load Schematic 5 | . . . . . . . . . . . . 1 . . . . . 4 Build 3 | . . . . . . . . . . . . . . . . . . 3 Repair Station Hacks 4 | . 2 . . . . . . . . . . . . . . . . 2 Scan Component 2 | . 1 . . . . . . . . . . . . . . . . 1 Repair 2 | . 1 . . . . . . . . . . . . . . . . 1 Recycling Unit Hacks . | . . . . . . . . . . . . . . . . . . . Scanalyzer . | . . . . . . . . . . . . . . . . . . . Garrison Access Hacks . | . . . . . . . . . . . . . . . . . . . Unauthorized Hacks 21 | . 2 . . 9 . 2 . . . . . 1 . . . 3 1 3 Terminals 10 | . 1 . . 5 . . . . . . . . . . . 3 1 . Botnet 2 | . . . . 2 . . . . . . . . . . . . . . Detonate 1 | . . . . . . . . . . . . . . . . 1 . . Skim 5 | . 1 . . 3 . . . . . . . . . . . . 1 . Sabotage 2 | . . . . . . . . . . . . . . . . 2 . . Fabricators 3 | . . . . . . . . . . . . 1 . . . . . 2 Prioritize 1 | . . . . . . . . . . . . . . . . . . 1 Recompile 2 | . . . . . . . . . . . . 1 . . . . . 1 Repair Stations 3 | . . . . . . 2 . . . . . . . . . . . 1 Recycling Units 5 | . 1 . . 4 . . . . . . . . . . . . . . Tunnel 5 | . 1 . . 4 . . . . . . . . . . . . . . Scrapoids 3 | . . . . . . 2 . . . . . . . . . . . 1 Scanalyzers . | . . . . . . . . . . . . . . . . . . . Garrison Access . | . . . . . . . . . . . . . . . . . . . Data Cores Recovered . | . . . . . . . . . . . . . . . . . . . Used . | . . . . . . . . . . . . . . . . . . . Hacking Detections 16 | . 4 . . 4 . 2 . . . . . 1 2 1 . 1 . 1 Full Trace Events 2 | . . . . . . . . . . . . 1 . . . . 1 . Feedback Events . | . . . . . . . . . . . . . . . . . . . Feedback Blocked 1 | . . . . . . . . . . . . . . . . . 1 . Robot Schematics Acquired . | . . . . . . . . . . . . . . . . . . . Robots Built . | . . . . . . . . . . . . . . . . . . . Authchips . | . . . . . . . . . . . . . . . . . . . Time . | . . . . . . . . . . . . . . . . . . . Total Robot Build Rating . | . . . . . . . . . . . . . . . . . . . Part Schematics Acquired 38 | . . . . . . 1 5 . 11 4 . 3 6 1 1 . 1 5 Parts Built 4 | . . . . . . . . . . . . . . . . . . 4 Authchips 3 | . . . . . . . . . . . . . . . . . . 3 Time 466 | . . . . . . . . . . . . . . . . . . 466 Total Part Build Rating 32 | . . . . . . . . . . . . . . . . . . 32 Parts Repaired 2 | . 1 . . . . . . . . . . . . . . . . 1 Time 86 | . 32 . . . . . . . . . . . . . . . . 54 Parts Recycled . | . . . . . . . . . . . . . . . . . . . Recycled Matter . | . . . . . . . . . . . . . . . . . . . Retrieved Matter . | . . . . . . . . . . . . . . . . . . . Retrieved Components . | . . . . . . . . . . . . . . . . . . . Parts Scanalyzed . | . . . . . . . . . . . . . . . . . . . Part Schematics Acquired . | . . . . . . . . . . . . . . . . . . . Parts Damaged . | . . . . . . . . . . . . . . . . . . . Bothacking | -11 -10 -10 -10 -9 -9 -6 -6 -6 -6 -6 -5 -5 -5 -5 -5 -5 -4 -4 ------------ Run | Yrd Mat Min Sub Rec Scr Fac Low Low Zio Dee Pro Fac Ext Cet Arc Hub Fac Arm Used RIF Installer . | . . . . . . . . . . . . . . . . . . . Robots Hacked . | . . . . . . . . . . . . . . . . . . . Non-combat . | . . . . . . . . . . . . . . . . . . . Combat . | . . . . . . . . . . . . . . . . . . . Robot Hacks Applied . | . . . . . . . . . . . . . . . . . . . Relay Couplers Released . | . . . . . . . . . . . . . . . . . . . Fabnet Peak Effective % . | . . . . . . . . . . . . . . . . . . . Robots Rewired 28 | . . . . . . . 2 . . . . . 18 . . . . 8 Allies Hacked 2 | . . . . . . . . . . . . . . . . . . 2 Hacks Repelled . | . . . . . . . . . . . . . . . . . . . Allies | -11 -10 -10 -10 -9 -9 -6 -6 -6 -6 -6 -5 -5 -5 -5 -5 -5 -4 -4 -------- Run | Yrd Mat Min Sub Rec Scr Fac Low Low Zio Dee Pro Fac Ext Cet Arc Hub Fac Arm Total Allies 61 | . . . . . . 10 2 . 7 . . . 24 5 . . . 13 Largest Group 12 | . . . . . . 5 5 4 11 11 . . 12 11 5 3 . 8 Highest-Rated Group 757 | . . . . . . 140 140 108 535 535 . . 453 757 415 217 . 384 Highest-Rated Ally 159 | . . . . . . 28 32 32 96 96 . . 159 159 96 96 . 48 Total Orders 1 | . . . . . . . . . . 1 . . . . . . . . STAY 1 | . . . . . . . . . . 1 . . . . . . . . Ally Attacks 553 | . . . . . . 11 56 6 . 111 . . 127 86 48 23 . 85 Total Damage 13644 | . . . . . . 94 1001 99 . 2177 . . 3295 2405 1667 580 . 2326 Kills 77 | . . . . . . 1 10 3 . 13 . . 19 8 4 4 . 15 Allies Corrupted . | . . . . . . . . . . . . . . . . . . . Allies Melted 2 | . . . . . . . . . . . . . 1 . . . . 1 Intel | -11 -10 -10 -10 -9 -9 -6 -6 -6 -6 -6 -5 -5 -5 -5 -5 -5 -4 -4 ------- Run | Yrd Mat Min Sub Rec Scr Fac Low Low Zio Dee Pro Fac Ext Cet Arc Hub Fac Arm Robot Analysis Total 9 | . 1 . . . 8 . . . . . . . . . . . . . Derelict Logs Recovered 12 | . . 1 2 . 5 . . 2 2 . . . . . . . . . Drone Launches . | . . . . . . . . . . . . . . . . . . . Drone Recoveries . | . . . . . . . . . . . . . . . . . . . Exploration | -11 -10 -10 -10 -9 -9 -6 -6 -6 -6 -6 -5 -5 -5 -5 -5 -5 -4 -4 ------------- Run | Yrd Mat Min Sub Rec Scr Fac Low Low Zio Dee Pro Fac Ext Cet Arc Hub Fac Arm Turns Passed 20186 | 142 882 1199 3512 720 3463 436 475 370 1243 1242 200 635 1192 655 426 332 1319 1743 Spaces Moved 10863 | 69 469 729 1838 353 1800 154 315 297 1006 897 176 453 625 225 91 119 436 811 Core 7 | 2 . . . . . . . . . . . . . . . . . 5 Treads 3556 | 67 469 729 1330 . . . . . . . . . . 198 91 119 436 117 Legs . | . . . . . . . . . . . . . . . . . . . Wheels 7300 | . . . 508 353 1800 154 315 297 1006 897 176 453 625 27 . . . 689 Hover . | . . . . . . . . . . . . . . . . . . . Flight . | . . . . . . . . . . . . . . . . . . . Fastest Speed 50 | 50 160 160 120 177 190 100 110 120 110 110 110 100 100 100 240 240 240 90 Average Speed 157 | 156 160 160 172 188 190 141 117 120 120 119 110 109 109 221 240 240 240 141 Slowest Speed 1200 | 160 160 160 360 190 190 410 120 120 130 130 110 110 110 240 240 240 240 1200 Overloaded Moves . | . . . . . . . . . . . . . . . . . . . Propulsion Burnouts . | . . . . . . . . . . . . . . . . . . . Robots Hopped 2 | . . . . . . . 2 . . . . . . . . . . . Cave-ins Triggered 1 | . . . . . . . . . . . . . . . . . . 1 Exploration Rate (%) 50 | 4 79 86 78 62 87 5 38 49 86 71 32 12 70 67 70 13 13 39 Regions Visited 18 Branch Regions 14 Pre-discovered Areas 9 | . 1 1 1 4 1 . . . 1 . . . . . . . . . Known Exits Taken 3 | . . . 1 . . 1 . . . . 1 . . . . . . . Unknown Exits Taken 15 | 1 1 1 . 1 1 . 1 1 1 1 . 1 1 1 1 1 1 . Scrap Searched 17 | . . 1 6 . 4 . 1 2 3 . . . . . . . . . Spaces Dug 13 | . . . . 3 . 1 . . . 2 4 3 . . . . . . Terrain Destroyed 494 | . . . 1 5 . 5 1 . . 18 4 17 17 3 1 173 14 235 Melee 4 | . . . . 3 . 1 . . . . . . . . . . . . Projectile 311 | . . . 1 2 . 4 1 . . 18 4 17 17 3 1 3 14 226 AOE 179 | . . . . . . . . . . . . . . . . 170 . 9 Terrain Rammed . | . . . . . . . . . . . . . . . . . . . Walls Destroyed . | . . . . . . . . . . . . . . . . . . . Machines Disabled . | . . . . . . . . . . . . . . . . . . . Actions | -11 -10 -10 -10 -9 -9 -6 -6 -6 -6 -6 -5 -5 -5 -5 -5 -5 -4 -4 --------- Run | Yrd Mat Min Sub Rec Scr Fac Low Low Zio Dee Pro Fac Ext Cet Arc Hub Fac Arm Total 13248 | 89 560 741 2013 402 1851 275 408 310 1039 1044 179 549 1063 377 295 150 613 1290 Wait 1061 | 1 44 1 26 26 . 19 64 12 26 69 . 30 177 102 198 7 35 224 Move 10842 | 68 468 728 1837 352 1799 153 311 296 1005 896 175 452 624 224 90 118 435 811 Hop 1 | . . . . . . . 1 . . . . . . . . . . . Pick Up 163 | 8 12 . 31 5 32 5 5 . 2 12 . 5 5 10 1 2 8 20 Fast Attach 58 | 4 2 . 6 1 1 7 2 . 1 4 . 2 1 6 . . 6 15 Attach 60 | 2 . . 8 . 2 17 3 . 1 1 . 3 6 3 . . 7 7 Detach 9 | . . . . 1 . . . . . . . 1 3 1 . . 1 2 Swap 42 | . 6 . 11 3 . 3 . . 2 2 . . 2 1 1 . 2 9 Drop 128 | . 6 . 15 6 17 7 7 . 2 17 . 4 3 14 1 2 7 20 Fire 605 | 6 20 10 79 2 . 63 10 1 . 41 4 51 84 16 4 20 101 93 Melee 12 | . . . . 5 . 1 . . . . . . . . . . 4 2 Ram . | . . . . . . . . . . . . . . . . . . . Kick . | . . . . . . . . . . . . . . . . . . . Crush 9 | . 2 2 . . . . . . . . . . . . . 1 4 . Escape Stasis 24 | . . . . . . . . . . . . . 16 . . . . 8 Rewire 226 | . . . . 1 . . 5 1 . 2 . . 139 . . . . 78 Trap . | . . . . . . . . . . . . . . . . . . . Miscellaneous 8 | . . . . . . . . . . . . 1 3 . . . 3 1 Route ------- -11/Scrapyard -10/Materials (discovered 3 exits: [*Mat x2] / [*Min]) -10/Mines (discovered 2 exits: [*Mat] / *Sub) -10/Subcaves (discovered 2 exits: [*Mat] / *Rec) -9/Recycling -9/Scraptown (discovered 2 exits: *Fac x2) -6/Factory (discovered 5 exits: Fac x3 / *Low x2) -6/Lower Caves -6/Lower Caves -6/Zion (discovered 2 exits: [*Dee] / [*Pro]) -6/Deep Caves -5/Proximity Caves -5/Factory -5/Extension (discovered 2 exits: *Fac / *Cet) -5/Cetus (discovered 2 exits: *Fac / [*Arc]) -5/Archives (discovered 2 exits: *Hub x2) -5/Hub_04(d) -4/Factory -4/Armory History --------- Turn | Location | Event 7 | -11/Scrapyard | Discovered new exit (range 15) 143 | -11/Scrapyard | Entered Materials 298 | -10/Materials | Discovered new exit (range 15) 316 | -10/Materials | Build established: Mutant 414 | -10/Materials | Discovered new exit (range 13) 732 | -10/Materials | Repaired Shotgun 811 | -10/Materials | Central database locked down 843 | -10/Materials | Discovered new exit (range 15) 1025 | -10/Materials | Entered Mines 1044 | -10/Mines | Learned Materials trap positions 1408 | -10/Mines | Found a hidden stash of uninstalled traps 1509 | -10/Mines | Discovered new exit (range 9) 1625 | -10/Mines | Learned location of Storage (-9) 2216 | -10/Mines | Discovered new exit (range 6) 2224 | -10/Mines | Entered Subcaves 2292 | -10/Subcaves | Visited Clippyterm 2297 | -10/Subcaves | Identified exit to Recycling 2297 | -10/Subcaves | Learned 40 Factory zone layouts 2432 | -10/Subcaves | A swath of the cavern ceiling suddenly collapsed 2948 | -10/Subcaves | Ambushed by angry Subdweller bent on revenge 3590 | -10/Subcaves | A Subdweller sparked back to life 3590 | -10/Subcaves | A Subdweller sparked back to life 3590 | -10/Subcaves | A Subdweller sparked back to life 3645 | -10/Subcaves | Found Prototype Energy Cannon 3817 | -10/Subcaves | Shifting Twisted Machinery released Barrage Gun 3819 | -10/Subcaves | Shifting Twisted Machinery released Mak. Shrapnel Gun 4815 | -10/Subcaves | Core integrity fell below 50% 4948 | -10/Subcaves | Learned Materials stockpile data 4993 | -10/Subcaves | Learned location of Zion (-6) 4993 | -10/Subcaves | Met a Zionite searching for "candidates" 5036 | -10/Subcaves | Learned location of 1 exit from Materials 5045 | -10/Subcaves | Shifting Twisted Machinery released Battle Rifle 5065 | -10/Subcaves | Disturbed a concealed Subdweller 5174 | -10/Subcaves | Shifting Twisted Machinery released Sub. Monowheel 5180 | -10/Subcaves | Discovered new exit (range 16) 5261 | -10/Subcaves | Core integrity fell below 20% 5490 | -10/Subcaves | Found SUBCON Basin 5707 | -10/Subcaves | Build established: Hauler-Mutant 5736 | -10/Subcaves | Entered Recycling 6400 | -9/Recycling | Scanned before Scraplab entrance 6426 | -9/Recycling | Entered Scraplab 6454 | -9/Recycling | Discovered new exit (range 2) 6456 | -9/Recycling | Entered Scraptown 6739 | -9/Scraptown | Visited UFD Registry 6739 | -9/Scraptown | Registered with UFD as "Kinetithruster" 6764 | -9/Scraptown | Visited Fellowship of the Rings 6804 | -9/Scraptown | Visited Cave Peace 6853 | -9/Scraptown | Scanned Subdweller tech in exchange for log data 6857 | -9/Scraptown | Learned Research terminal intel 6859 | -9/Scraptown | Learned location of Testing (-2) 6861 | -9/Scraptown | Learned location of 1 exit from Factory 6863 | -9/Scraptown | Learned Research emergency access door positions 6864 | -9/Scraptown | Learned Factory security intel 6946 | -9/Scraptown | Discovered new exit (range 13) 7009 | -9/Scraptown | Visited Symbiants 7039 | -9/Scraptown | Visited Shadow of the Wyrm 7060 | -9/Scraptown | Visited The Evicted 7077 | -9/Scraptown | Visited Cyclists 7091 | -9/Scraptown | Entered Cyclist Reading Room 7132 | -9/Scraptown | Visited Awakened 7212 | -9/Scraptown | Visited Junk Repository 7301 | -9/Scraptown | Visited Scrapoid Pod Storage 7311 | -9/Scraptown | Found Scrapoid Pod 7348 | -9/Scraptown | Visited Abandonware Association 7371 | -9/Scraptown | Learned abandonware demo "ERRANTS.EXE" 7371 | -9/Scraptown | Learned abandonware demo "TRNCOAT.EXE" 7417 | -9/Scraptown | Visited Junk Repository 7502 | -9/Scraptown | Visited A0-MCA Data Center 7513 | -9/Scraptown | Given a B- rating by A0-MCA 7517 | -9/Scraptown | Found A0-MCA's Component Scanner 7551 | -9/Scraptown | Visited Scrap Suit Storage 7591 | -9/Scraptown | Visited Science Guys 7648 | -9/Scraptown | Visited Curators Association 7735 | -9/Scraptown | Delivered Scrap Shield to a Scientist 7895 | -9/Scraptown | Visited Analyses Database 8142 | -9/Scraptown | Discovered new exit (range 5) 9604 | -9/Scraptown | Guru changed UFD alias to "Powerguard" 9919 | -9/Scraptown | Entered Factory 9919 | -6/Factory | Evolved 8 slots: Utility x8 9920 | -6/Factory | Identified exit to Lower Caves 9921 | -6/Factory | Identified exit to Factory 10005 | -6/Factory | Scrapoid reinforcements arrived 10011 | -6/Factory | Found Scrap Suit 10047 | -6/Factory | Lost 5 allies 10082 | -6/Factory | Lost 4 parts (2n1u1w) 10154 | -6/Factory | Found Scrap Suit 10161 | -6/Factory | Identified Powered Cannon 10167 | -6/Factory | Lost 8 parts (2p4u2w) 10326 | -6/Factory | Scrapoid reinforcements arrived 10355 | -6/Factory | Entered Lower Caves 10355 | -6/Lower Caves | Accompanied by 5 allies 10357 | -6/Lower Caves | UFD Scientist delivered a prototype 10357 | -6/Lower Caves | Attracted the attention of an 0b10 checkpoint 10357 | -6/Lower Caves | Attracted the attention of an 0b10 outpost 10386 | -6/Lower Caves | Found Enh. Scrap Shield 10448 | -6/Lower Caves | Found Scrap Suit 10477 | -6/Lower Caves | Tech Extrapolator generated special schematic: Machine Rigger 10479 | -6/Lower Caves | Build established: Scavenger-Scrapper 10518 | -6/Lower Caves | Attached Powered Cannon, gained temporary slot: Power 10561 | -6/Lower Caves | Encountered a Warlord checkpoint 10787 | -6/Lower Caves | Discovered new exit (range 7) 10805 | -6/Lower Caves | Build established: Scavenger-Mutant 10830 | -6/Lower Caves | Entered another Lower Caves area 10830 | -6/Lower Caves | Accompanied by 4 allies 11008 | -6/Lower Caves | Learned Factory emergency access door positions 11103 | -6/Lower Caves | Learned Factory terminal intel 11148 | -6/Lower Caves | Discovered new exit (range 9) 11200 | -6/Lower Caves | Entered Zion 11200 | -6/Zion | Accompanied by 4 allies 11250 | -6/Zion | System corruption cleaned by Quarantine Array 11301 | -6/Zion | Discovered new exit (range 15) 11509 | -6/Zion | Learned Factory interactive machine intel 11579 | -6/Zion | Acquired unknown access codes intercepted by a Zionite 11681 | -6/Zion | Turned away by Imprinter 11903 | -6/Zion | Given A8's code to call for help 11950 | -6/Zion | Received a hallucinogenic algorithm 12040 | -6/Zion | Given the Hacking Drone Bay 12169 | -6/Zion | Tech Extrapolator generated special schematic: Energy Deflector 12268 | -6/Zion | Scrapoid Pod released 06Z15-D (x5) 12393 | -6/Zion | Enhanced Grunt warped into view, answering call for help 12394 | -6/Zion | Enhanced Grunt warped into view, answering call for help 12396 | -6/Zion | Opened final containment barrier to the Deep Caves 12416 | -6/Zion | Discovered new exit (range 3) 12416 | -6/Zion | Saw the warning signs outside the Deep Caves entrance 12443 | -6/Zion | Entered Deep Caves 12443 | -6/Deep Caves | Accompanied by 11 allies 12658 | -6/Deep Caves | Attacked by Z-Imprinter 12661 | -6/Deep Caves | Allies destroyed Z-Imprinter 12699 | -6/Deep Caves | Found Zio. Metafield Generator 12708 | -6/Deep Caves | Found Zio. Weapon Casing 12814 | -6/Deep Caves | Lost 4 allies 13267 | -6/Deep Caves | Found Exp. Thermal Shield 13289 | -6/Deep Caves | Found Exp. Thermal Shield 13323 | -6/Deep Caves | Murdered 3 allies 13330 | -6/Deep Caves | Spotted AG-41421 13386 | -6/Deep Caves | Discovered new exit (range 6) 13433 | -6/Deep Caves | Found Zio. Weapon Casing 13448 | -6/Deep Caves | Found Zio. Weapon Casing 13508 | -6/Deep Caves | Found Zio. Weapon Casing 13517 | -6/Deep Caves | Found Zio. Weapon Casing 13685 | -6/Deep Caves | Entered Proximity Caves 13871 | -5/Proximity Caves | Discovered exit to Factory (range 14) 13879 | -5/Proximity Caves | Spotted B-75 Beast 13885 | -5/Proximity Caves | Entered Factory 13885 | -5/Factory | Evolved 2 slots: Utility x1, Weapon x1 13887 | -5/Factory | Loaded intel: 52 interactive machine locations 13888 | -5/Factory | Loaded intel: 27 terminal locations 14259 | -5/Factory | Discovered new exit (range 12) 14520 | -5/Factory | Entered Extension 14615 | -5/Extension | Rescued a captive Derelict 14680 | -5/Extension | Rescued a captive Derelict 14816 | -5/Extension | Rescued A7 14820 | -5/Extension | First assault squad dispatched 15013 | -5/Extension | Lost 3 allies 15068 | -5/Extension | Spotted B-75 Beast 15085 | -5/Extension | Destroyed B-75 Beast 15099 | -5/Extension | Spotted B-75 Beast 15114 | -5/Extension | Destroyed B-75 Beast 15326 | -5/Extension | Rescued a captive Derelict 15524 | -5/Extension | Rescued a captive Derelict 15531 | -5/Extension | Rescued a captive Derelict 15659 | -5/Extension | Discovered new exit (range 10) 15660 | -5/Extension | Discovered new exit (range 6) 15712 | -5/Extension | Entered Cetus 15712 | -5/Cetus | Accompanied by 11 allies (A7) 15717 | -5/Cetus | Acquired a Cetus Manufacturing Module code from A7 15723 | -5/Cetus | Build established: Commander-Mutant 15744 | -5/Cetus | Spotted Cetus Guard 15747 | -5/Cetus | Spotted Cetus Guard 15747 | -5/Cetus | Spotted Cetus Guard 15752 | -5/Cetus | Spotted Cetus Guard 15759 | -5/Cetus | Destroyed Cetus Guard 15761 | -5/Cetus | Allies destroyed Cetus Guard 15768 | -5/Cetus | Destroyed Cetus Guard 15773 | -5/Cetus | Destroyed Cetus Guard 15787 | -5/Cetus | Lost 6 allies 15890 | -5/Cetus | Started Cetus Manufacturing Module 15915 | -5/Cetus | Manufactured an Enhanced Grunt 15918 | -5/Cetus | Discovered new exit (range 15) 15940 | -5/Cetus | Manufactured an Enhanced Grunt 15958 | -5/Cetus | Escorted A7 to Cetus Mainframe 15965 | -5/Cetus | Manufactured an Enhanced Grunt 15990 | -5/Cetus | Manufactured an Enhanced Grunt 16015 | -5/Cetus | Manufactured an Enhanced Grunt 16161 | -5/Cetus | Spotted Cetus Guard 16161 | -5/Cetus | Spotted Cetus Guard 16166 | -5/Cetus | Spotted Cetus Guard 16168 | -5/Cetus | Spotted Cetus Guard 16170 | -5/Cetus | Allies destroyed Cetus Guard 16179 | -5/Cetus | Allies destroyed Cetus Guard 16181 | -5/Cetus | Allies destroyed Cetus Guard 16183 | -5/Cetus | Allies destroyed Cetus Guard 16192 | -5/Cetus | Extracted ID and sensor layout for unrecognized location from A7's data core 16200 | -5/Cetus | Discovered new exit (range 15) 16209 | -5/Cetus | Lost 5 allies 16231 | -5/Cetus | Met Revision 17 16367 | -5/Cetus | Entered Archives 16367 | -5/Archives | Accompanied by 5 allies 16463 | -5/Archives | Discovered new exit (range 16) 16484 | -5/Archives | Build established: Scavenger-Tank 16484 | -5/Archives | Discovered new exit (range 15) 16793 | -5/Archives | Entered Hub_04(d) 16793 | -5/Hub_04(d) | Accompanied by 3 allies 16829 | -5/Hub_04(d) | Discovered new exit (range 11) 17123 | -5/Hub_04(d) | Network Hub disabled 17125 | -5/Hub_04(d) | Entered Factory 17125 | -4/Factory | Evolved 2 slots: Power x1, Utility x1 18022 | -4/Factory | Garrison activated, responded to threat 18039 | -4/Factory | Build established: Scavenger-Mutant 18320 | -4/Factory | Destroyed 10 combat bots 18370 | -4/Factory | Lost 5 parts (2p3u) 18375 | -4/Factory | First assault squad dispatched 18407 | -4/Factory | Discovered new exit (range 8) 18444 | -4/Factory | Entered Armory 18526 | -4/Armory | Build established: Hacker-Mutant 18659 | -4/Armory | Scrapoid reinforcements arrived 18775 | -4/Armory | Found Scrap Suit 18786 | -4/Armory | Lost 3 allies 18972 | -4/Armory | Fabricated Hyp. Gauss Cannon? 19081 | -4/Armory | Found Gamma Bomb Array 19115 | -4/Armory | Repaired Centrium Medium Armor Plating? 19154 | -4/Armory | Tech Extrapolator generated special schematic: Hyp. Alpha Cannon 19231 | -4/Armory | First assault squad dispatched 19333 | -4/Armory | Lost 5 allies 19362 | -4/Armory | Lost 7 parts (2p3u2w) 19440 | -4/Armory | System corruption reached 10% 19513 | -4/Armory | Found Scrap Suit 19561 | -4/Armory | Fabricated Hyp. Alpha Cannon? 19694 | -4/Armory | Fabricated Hyp. Alpha Cannon (x1) 19877 | -4/Armory | Found Scrap Suit 20089 | -4/Armory | Core integrity fell below 50% 20110 | -4/Armory | Destroyed 15 combat bots 20128 | -4/Armory | Lost 5 parts (2p2u1w) 20156 | -4/Armory | Crushed by falling debris 20187 | -4/Armory | Core integrity fell below 20% 20187 | -4/Armory | Self-destructed Last Messages --------------- 20169_ Slug penetrates G-67 Veteran. 20169_ G-67 Veteran destroyed. 20170_ Scrap Suit destroyed. 20172_ Slug penetrates S-27 Virus. 20172_ Slug penetrates Earth. 20175_ Adv. Energy Well destroyed. 20175_ Slug penetrates S-27 Virus. 20175_ S-27 Virus destroyed. 20175_ Switching to secondary target: B-60 Warrior. 20178_ Slug penetrates G-67 Veteran. 20179_ System corrupted: Matter fused (-6). 20179_ W-44 Eye sends out distress signal. 20181_ Slug penetrates G-67 Veteran. 20181_ G-67 Veteran destroyed. 20181_ Switching to secondary target: B-60 Warrior. 20182_ The unstable cave ceiling collapses. 20185_ KE Penetrator destroyed. 20185_ System corrupted by crushing effect (+4). 20186_ Critical hit (Burn: +50). 20186_ S-27 Virus destroyed. Map ----- +----------------------------------------------------+ | ?????????????????????????????????????????????????? | | ?????????????????????????????????????????????????? | | ?????????????????????????????????????????????????? | | ?????????????????????????????????????????????????? | | ?????????????????????????????????????????????????? | | ??????????????????????#########??????????????????? | | ?????????????????????## ## #####??????????????? | | ????????????????????## ] #??????????????? | | ????????????????????# #??????????????? | | ?????????????????????# " #?############## | | ??????????????????????# "" #?# | | ?????????????##??????## "" #?# "######### | | ?????????????? ?????# "" ### " | | ?????????????? ????## + ; | | ?????????????? ???# # #### ; | | ??????????????? ???###### ; " """"" | | ?????????????" """ ???????# ; " """"" | | ????????????"" """ ??????# ; " """ | | ?????????? """ """ ?????# ; | | ??????????? s ###### ; | | ???????????""" = = ; !! | | ???????????""" =%! ; !! | | ????????# """ [ ;[*! !! | | ????????? s !%! ;!%=[ [ | | ?????????????# * = [[ #"#""###!%= | | ?????? =%=* @b # [ ! ###" | | ?????? w YY%= =gg[[ ; * ""## | | ??????????####### ########%!;; # = ! ""#? | | ??????????????????????????#*## # %! [! "#? | | ??????????????????????????# ## # ; * " ## | | ??????????????????????????#+######; = """# | | ???????????????????????????? # [ ### | | ???????????????????????????"""?"" # ;= ## # | | ???????????????????????????"]""]" # ; [ # #? | | ????????????????????? " " ] ] " " "#?? | | ????????????????????????## "]]]]" # "[ [%! ##?? | | ???????????????????????????"""??" # ["= == #??? | | ??????????????????????????????? " *%#% "% #??? | | ??????????????????????????? " =#!* ! #??? | | ?????????????????????????# " #=##"###??? | | ?????????????????????????######+#"!! # ???? | | ??????????????????????????????? ]%* " #??? | | ?????????????????????????????? ! = # #??? | | ???????????????????????????? %= # #??? | | ??????????????????????????? [ # !! #??? | | ??????????????????????????## # !! #??? | | ???????????????????????????# # ! #??? | | ???????????????????????????# "" # ??? | | ???????????????????????????" Y" # #??? | | ???????????????????????????? ?" # " #??? | +----------------------------------------------------+ Best States ------------- Heat Dissipation 74 Energy Generation 45 Energy Capacity 1100 Matter Stores 500 Matter Capacity 500 Sight Range 20 Terrain Scan Density 10 Power Amplification 20 Armor Coverage 2050 Resistance: TH 30 Weapon Shielding 100 Phase Shifting 15 Evasion (%) 55 Recoil Reduction 2 Offensive Hacking 11 Defensive Hacking 40 Authchip Count 7 Item Schematics ----------------- Ripper | -6/Factory | Extrapolated 0b10 Decoder Chip [Skirmisher] | -6/Lower Caves | Extrapolated Machine Rigger | -6/Lower Caves | Extrapolated Beamcaster | -6/Lower Caves | Extrapolated Mak. Coolant Network | -6/Lower Caves | Extrapolated Battle Cannon | -6/Lower Caves | Extrapolated Spk. Treads | -6/Zion | Extrapolated Spk. Medium Treads | -6/Zion | Extrapolated 0b10 Decoder Chip [Generic] | -6/Zion | Extrapolated 0b10 Decoder Chip [Scout] | -6/Zion | Extrapolated Mak. Terrain Scan Processor | -6/Zion | Extrapolated Mak. Light Armor Plating | -6/Zion | Extrapolated Mak. Core Shielding | -6/Zion | Extrapolated Arc Thrower | -6/Zion | Extrapolated Mak. Heavy Armor Plating | -6/Zion | Extrapolated Energy Deflector | -6/Zion | Extrapolated Mak. Medium Armor Plating | -6/Zion | Extrapolated Mak. Thermal Plating | -6/Deep Caves | Extrapolated Mak. Ablative Armor | -6/Deep Caves | Extrapolated Hvy. Battle Rifle | -6/Deep Caves | Extrapolated Mak. Weapon Shielding | -6/Deep Caves | Extrapolated Mak. Hacking Suite | -5/Factory | Extrapolated Mak. System Shield | -5/Factory | Extrapolated Mak. Targeting Computer | -5/Factory | Extrapolated Mak. Power Source | -5/Extension | Extrapolated Hvy. Beamcaster | -5/Extension | Extrapolated Multitool | -5/Extension | Extrapolated Enh. Flamer | -5/Extension | Extrapolated Plasma Flamer | -5/Extension | Extrapolated Hyp. Gauss Cannon | -5/Extension | Hacked Tactical Coordination Suite | -5/Cetus | Extrapolated Mak. System Restoration Module | -5/Archives | Extrapolated Mak. Sensor Array | -4/Factory | Extrapolated Mak. Kinetic Plating | -4/Armory | Extrapolated Mak. Transmission Jammer | -4/Armory | Extrapolated Hyp. Alpha Cannon | -4/Armory | Extrapolated Mak. Shrapnel Gun | -4/Armory | Extrapolated Bore Cannon | -4/Armory | Extrapolated Robot Schematics ------------------ None Fabricated ------------ Hyp. Gauss Cannon | x2 | -4/Armory | Authchip Hyp. Alpha Cannon | x1 | -4/Armory | Authchip Hyp. Alpha Cannon | x1 | -4/Armory | Authchip Alien Tech Used ----------------- None Achievements -------------- None Challenges ------------ None Game ------ Seed SpikedHardcellFlakker Manual? 0 Play Time 01:54:28 Cumulative 793.4 hours Start 2024.08.27 @ 22:58:54 End 2024.08.28 @ 12:26:45 Sessions 7 Manual Loads 0 Difficulty Rogue Special Mode None Game No. 788 Rogue 788 Adventurer 0 Explorer 0 Win Type - Total 39 Types 14/4/11/2/0/0/5/2/1 Lore% 96 Gallery% 92 Achievement% 84 Wizard Run 0 Options --------- Layout 0 ASCII 0 Keyboard 0 Movement Numpad Keybinds 0 Fullscreen 1 Font 18/Smallcaps Map View 76x50 Zoom Use 0% Tactical HUD 1 Map Filters NONE Filters NONE Steam 1 RUN: 6939525b-7d33-4824-8645-9bd5ae9b7914